[Event "Titled Tuesday Blitz November 22 Late 2022"]
[White "vjecspec"]
[Black "Wen, Tommy"]
[BlackFideId "30952255"]
[WhiteElo "2565"]
[BlackElo "2735"]
[Result "1/2-1/2"]
[Round "03"]
[TimeControl "180+1"]
[Date "2022.11.23"]
[WhiteClock "0:00:13"]
[BlackClock "0:00:09"]

1. e4 {[%clk 0:03:00]}  c5 {[%clk 0:02:59]} 2. Nf3 {[%clk 0:02:59]}  e6 {[%clk 0:02:59]} 3. c4 {[%clk 0:02:59]}  a6 {[%clk 0:02:59]} 4. d4 {[%clk 0:02:59]}  cxd4 {[%clk 0:03:00]} 5. Nxd4 {[%clk 0:03:00]}  Nf6 {[%clk 0:02:59]} 6. Nc3 {[%clk 0:03:00]}  Qc7 {[%clk 0:03:00]} 7. a3 {[%clk 0:03:01]}  b6 {[%clk 0:03:00]} 8. Be2 {[%clk 0:03:01]}  Bb7 {[%clk 0:03:00]} 9. f3 {[%clk 0:03:02]}  d6 {[%clk 0:02:59]} 10. Be3 {[%clk 0:03:01]}  Be7 {[%clk 0:03:00]} 11. O-O {[%clk 0:03:01]}  Nbd7 {[%clk 0:03:00]} 12. b4 {[%clk 0:03:01]}  O-O {[%clk 0:03:00]} 13. Rc1 {[%clk 0:03:01]}  Rac8 {[%clk 0:03:01]} 14. Qd2 {[%clk 0:03:01]}  Qb8 {[%clk 0:03:01]} 15. Rfd1 {[%clk 0:03:00]}  h5 {[%clk 0:03:01]} 16. Bg5 {[%clk 0:02:49]}  h4 {[%clk 0:02:56]} 17. h3 {[%clk 0:02:39]}  Rfe8 {[%clk 0:02:37]} 18. Bxh4 {[%clk 0:02:36]}  Nxe4 {[%clk 0:02:29]} 19. Nxe4 {[%clk 0:02:36]}  Bxh4 {[%clk 0:02:29]} 20. Nb3 {[%clk 0:02:30]}  d5 {[%clk 0:02:28]} 21. cxd5 {[%clk 0:02:28]}  Bxd5 {[%clk 0:02:14]} 22. Nd4 {[%clk 0:02:24]}  b5 {[%clk 0:02:02]} 23. Nc3 {[%clk 0:01:20]}  Nf6 {[%clk 0:01:22]} 24. Nxd5 {[%clk 0:01:17]}  Nxd5 {[%clk 0:01:23]} 25. Bf1 {[%clk 0:00:50]}  Bg3 {[%clk 0:01:17]} 26. Ne2 {[%clk 0:00:27]}  Be5 {[%clk 0:00:58]} 27. Rxc8 {[%clk 0:00:22]}  Rxc8 {[%clk 0:00:59]} 28. Rc1 {[%clk 0:00:22]}  Rxc1 {[%clk 0:00:46]} 29. Qxc1 {[%clk 0:00:23]}  Qb6+ {[%clk 0:00:44]} 30. Kh1 {[%clk 0:00:21]}  Qf2 {[%clk 0:00:36]} 31. f4 {[%clk 0:00:08]}  Nxf4 {[%clk 0:00:20]} 32. Nxf4 {[%clk 0:00:07]}  Bxf4 {[%clk 0:00:21]} 33. Qd1 {[%clk 0:00:03]}  Qg3 {[%clk 0:00:13]} 34. Kg1 {[%clk 0:00:02]}  Qh2+ {[%clk 0:00:09]} 35. Kf2 {[%clk 0:00:02]}  Qg3+ {[%clk 0:00:05]} 36. Kg1 {[%clk 0:00:03]}  Be3+ {[%clk 0:00:01]} 37. Kh1 {[%clk 0:00:03]}  Qf2 {[%clk 0:00:02]} 38. Bd3 {[%clk 0:00:03]}  g6 {[%clk 0:00:02]} 39. Qf1 {[%clk 0:00:02]}  Qxf1+ {[%clk 0:00:02]} 40. Bxf1 {[%clk 0:00:03]}  Bd4 {[%clk 0:00:03]} 41. a4 {[%clk 0:00:03]}  bxa4 {[%clk 0:00:03]} 42. Bxa6 {[%clk 0:00:04]}  a3 {[%clk 0:00:04]} 43. Bc4 {[%clk 0:00:04]}  Kf8 {[%clk 0:00:04]} 44. g3 {[%clk 0:00:05]}  Ke7 {[%clk 0:00:05]} 45. Kg2 {[%clk 0:00:06]}  Kd6 {[%clk 0:00:06]} 46. Kf3 {[%clk 0:00:06]}  Bc3 {[%clk 0:00:06]} 47. b5 {[%clk 0:00:06]}  Kc5 {[%clk 0:00:07]} 48. Ba2 {[%clk 0:00:07]}  Kxb5 {[%clk 0:00:07]} 49. Ke4 {[%clk 0:00:07]}  Kc5 {[%clk 0:00:08]} 50. Kd3 {[%clk 0:00:08]}  Bg7 {[%clk 0:00:08]} 51. g4 {[%clk 0:00:09]}  Kd6 {[%clk 0:00:09]} 52. Ke4 {[%clk 0:00:09]}  Bf6 {[%clk 0:00:09]} 53. Kf4 {[%clk 0:00:10]}  Be7 {[%clk 0:00:08]} 54. Ke4 {[%clk 0:00:10]}  Kc5 {[%clk 0:00:08]} 55. Kd3 {[%clk 0:00:10]}  Bf6 {[%clk 0:00:08]} 56. Bb3 {[%clk 0:00:10]}  Kb4 {[%clk 0:00:08]} 57. Ba2 {[%clk 0:00:10]}  Be7 {[%clk 0:00:07]} 58. Bc4 {[%clk 0:00:10]}  Bd8 {[%clk 0:00:06]} 59. Ba2 {[%clk 0:00:11]}  Kc5 {[%clk 0:00:05]} 60. Ke4 {[%clk 0:00:10]}  Kd6 {[%clk 0:00:06]} 61. Bb3 {[%clk 0:00:10]}  Bh4 {[%clk 0:00:05]} 62. Ba2 {[%clk 0:00:10]}  Ke7 {[%clk 0:00:06]} 63. Bb3 {[%clk 0:00:11]}  Kf6 {[%clk 0:00:06]} 64. Ba2 {[%clk 0:00:11]}  Kg5 {[%clk 0:00:07]} 65. Kf3 {[%clk 0:00:11]}  Be1 {[%clk 0:00:07]} 66. Bb3 {[%clk 0:00:11]}  Bb4 {[%clk 0:00:07]} 67. Ba2 {[%clk 0:00:11]}  Be7 {[%clk 0:00:07]} 68. Kg3 {[%clk 0:00:10]}  Bd6+ {[%clk 0:00:07]} 69. Kf3 {[%clk 0:00:11]}  Kh4 {[%clk 0:00:07]} 70. Kg2 {[%clk 0:00:12]}  Kg5 {[%clk 0:00:06]} 71. Kf3 {[%clk 0:00:12]}  Kf6 {[%clk 0:00:07]} 72. Ke4 {[%clk 0:00:12]}  Bf8 {[%clk 0:00:07]} 73. Bb3 {[%clk 0:00:12]}  g5 {[%clk 0:00:07]} 74. Ba2 {[%clk 0:00:12]}  Ke7 {[%clk 0:00:07]} 75. Bb3 {[%clk 0:00:12]}  Kd6 {[%clk 0:00:08]} 76. Ba2 {[%clk 0:00:13]}  Bg7 {[%clk 0:00:08]} 77. Bb3 {[%clk 0:00:13]}  Kc5 {[%clk 0:00:08]} 78. Kd3 {[%clk 0:00:13]}  Be5 {[%clk 0:00:07]} 79. Ba2 {[%clk 0:00:13]}  Kb4 {[%clk 0:00:07]} 80. Bc4 {[%clk 0:00:13]}  Bg3 {[%clk 0:00:07]} 81. Ba2 {[%clk 0:00:13]}  Kc5 {[%clk 0:00:07]} 82. Ke4 {[%clk 0:00:12]}  Kd6 {[%clk 0:00:08]} 83. Bb3 {[%clk 0:00:13]}  Bf4 {[%clk 0:00:06]} 84. Ba2 {[%clk 0:00:13]}  Bc1 {[%clk 0:00:06]} 85. Bb3 {[%clk 0:00:13]}  Bb2 {[%clk 0:00:07]} 86. Ba2 {[%clk 0:00:14]}  Kc5 {[%clk 0:00:07]} 87. Kd3 {[%clk 0:00:13]}  Kb4 {[%clk 0:00:08]} 88. Bc4 {[%clk 0:00:13]}  Kc5 {[%clk 0:00:07]} 89. Ba2 {[%clk 0:00:14]}  Kd6 {[%clk 0:00:07]} 90. Ke4 {[%clk 0:00:14]}  f6 {[%clk 0:00:07]} 91. Bb3 {[%clk 0:00:14]}  Ke7 {[%clk 0:00:06]} 92. Ba2 {[%clk 0:00:14]}  Bc3 {[%clk 0:00:06]} 93. Bb3 {[%clk 0:00:14]}  Be1 {[%clk 0:00:05]} 94. Ba2 {[%clk 0:00:15]}  Bg3 {[%clk 0:00:05]} 95. Bb3 {[%clk 0:00:15]}  Bd6 {[%clk 0:00:06]} 96. Ba2 {[%clk 0:00:16]}  Be5 {[%clk 0:00:05]} 97. Bb3 {[%clk 0:00:16]}  Kd6 {[%clk 0:00:06]} 98. Ba2 {[%clk 0:00:16]}  Bb2 {[%clk 0:00:06]} 99. Bb3 {[%clk 0:00:16]}  Bc1 {[%clk 0:00:06]} 100. Ba2 {[%clk 0:00:17]}  f5+ {[%clk 0:00:07]} 101. gxf5 {[%clk 0:00:17]}  exf5+ {[%clk 0:00:08]} 102. Kxf5 {[%clk 0:00:16]}  Kc5 {[%clk 0:00:08]} 103. Ke4 {[%clk 0:00:15]}  Kb4 {[%clk 0:00:09]} 104. Kd3 {[%clk 0:00:16]}  Bf4 {[%clk 0:00:09]} 105. Be6 {[%clk 0:00:16]}  Kc5 {[%clk 0:00:08]} 106. Ba2 {[%clk 0:00:14]}  Kd6 {[%clk 0:00:09]} 107. Ke4 {[%clk 0:00:14]}  Ke7 {[%clk 0:00:09]} 108. Kf5 {[%clk 0:00:13]} 1/2-1/2


[Site "https://www.chess.com"]

[Event "Titled Tuesday Blitz November 22 Late 2022"]
[White "Aghasiyev, Kamal"]
[Black "Gorodetzky, David"]
[WhiteFideId "13402854"]
[BlackFideId "2813416"]
[WhiteElo "2341"]
[BlackElo "2497"]
[Result "0-1"]
[Round "04"]
[TimeControl "180+1"]
[Date "2022.11.23"]
[WhiteClock "0:00:05"]
[BlackClock "0:00:57"]

1. d4 {[%clk 0:02:59]}  Nf6 {[%clk 0:02:43]} 2. Nf3 {[%clk 0:02:53]}  d5 {[%clk 0:02:42]} 3. Bf4 {[%clk 0:02:48]}  Bf5 {[%clk 0:02:39]} 4. e3 {[%clk 0:02:44]}  e6 {[%clk 0:02:39]} 5. Nbd2 {[%clk 0:02:44]}  c5 {[%clk 0:02:37]} 6. c3 {[%clk 0:02:43]}  Nc6 {[%clk 0:02:37]} 7. Be2 {[%clk 0:02:31]}  Qb6 {[%clk 0:02:34]} 8. Qb3 {[%clk 0:02:26]}  c4 {[%clk 0:02:34]} 9. Qxb6 {[%clk 0:02:25]}  axb6 {[%clk 0:02:35]} 10. a3 {[%clk 0:02:25]}  b5 {[%clk 0:02:36]} 11. Rc1 {[%clk 0:02:24]}  h6 {[%clk 0:02:35]} 12. h3 {[%clk 0:02:20]}  Nd7 {[%clk 0:02:33]} 13. Bd1 {[%clk 0:02:14]}  Nb6 {[%clk 0:02:33]} 14. Bc2 {[%clk 0:02:14]}  Na4 {[%clk 0:02:33]} 15. Bxf5 {[%clk 0:02:08]}  exf5 {[%clk 0:02:34]} 16. Rb1 {[%clk 0:02:05]}  Kd7 {[%clk 0:02:32]} 17. Kd1 {[%clk 0:02:05]}  g5 {[%clk 0:02:31]} 18. Ne5+ {[%clk 0:02:03]}  Ke6 {[%clk 0:02:30]} 19. Bh2 {[%clk 0:02:02]}  Bd6 {[%clk 0:02:30]} 20. Kc2 {[%clk 0:01:48]}  Bxe5 {[%clk 0:02:26]} 21. Bxe5 {[%clk 0:01:47]}  Nxe5 {[%clk 0:02:26]} 22. dxe5 {[%clk 0:01:47]}  Nc5 {[%clk 0:02:26]} 23. Nf3 {[%clk 0:01:29]}  Nd3 {[%clk 0:02:26]} 24. Rhf1 {[%clk 0:01:26]}  g4 {[%clk 0:02:16]} 25. Nd4+ {[%clk 0:01:14]}  Kxe5 {[%clk 0:02:16]} 26. h4 {[%clk 0:01:06]}  Ra6 {[%clk 0:01:55]} 27. Rbd1 {[%clk 0:01:03]}  Re8 {[%clk 0:01:51]} 28. g3 {[%clk 0:01:01]}  Kf6 {[%clk 0:01:51]} 29. Rxd3 {[%clk 0:01:01]}  cxd3+ {[%clk 0:01:51]} 30. Kxd3 {[%clk 0:01:01]}  Rc8 {[%clk 0:01:48]} 31. Rb1 {[%clk 0:00:58]}  Rc4 {[%clk 0:01:48]} 32. Nxb5 {[%clk 0:00:55]}  Rb6 {[%clk 0:01:47]} 33. Nd4 {[%clk 0:00:54]}  Ra4 {[%clk 0:01:46]} 34. Kc2 {[%clk 0:00:52]}  Ke5 {[%clk 0:01:46]} 35. Rd1 {[%clk 0:00:45]}  Ke4 {[%clk 0:01:46]} 36. Rd2 {[%clk 0:00:44]}  Rc4 {[%clk 0:01:41]} 37. Kd1 {[%clk 0:00:43]}  Rc5 {[%clk 0:01:28]} 38. Ke2 {[%clk 0:00:43]}  Ke5 {[%clk 0:01:28]} 39. Rc2 {[%clk 0:00:35]}  Rc8 {[%clk 0:01:26]} 40. Rd2 {[%clk 0:00:35]}  Re8 {[%clk 0:01:26]} 41. Rc2 {[%clk 0:00:31]}  Kf6 {[%clk 0:01:25]} 42. Kd3 {[%clk 0:00:30]}  Re4 {[%clk 0:01:24]} 43. Rc1 {[%clk 0:00:22]}  Ra6 {[%clk 0:01:24]} 44. Kc2 {[%clk 0:00:17]}  Rb6 {[%clk 0:01:24]} 45. b4 {[%clk 0:00:14]}  Ra6 {[%clk 0:01:23]} 46. Kb3 {[%clk 0:00:14]}  Ra8 {[%clk 0:01:24]} 47. a4 {[%clk 0:00:14]}  Rc8 {[%clk 0:01:21]} 48. a5 {[%clk 0:00:14]}  f4 {[%clk 0:01:21]} 49. Re1 {[%clk 0:00:04]}  Rce8 {[%clk 0:01:12]} 50. gxf4 {[%clk 0:00:04]}  Rxf4 {[%clk 0:01:12]} 51. Re2 {[%clk 0:00:04]}  Rfe4 {[%clk 0:01:10]} 52. Ra2 {[%clk 0:00:04]}  g3 {[%clk 0:01:07]} 53. fxg3 {[%clk 0:00:04]}  Rxe3 {[%clk 0:01:08]} 54. b5 {[%clk 0:00:05]}  Rc8 {[%clk 0:01:08]} 55. Rc2 {[%clk 0:00:04]}  Rc5 {[%clk 0:01:01]} 56. Kb4 {[%clk 0:00:04]}  Rc4+ {[%clk 0:01:01]} 57. Kb3 {[%clk 0:00:04]}  Rxd4 {[%clk 0:01:02]} 58. a6 {[%clk 0:00:04]}  bxa6 {[%clk 0:01:02]} 59. bxa6 {[%clk 0:00:05]}  Rc4 {[%clk 0:00:57]} 60. Rf2+ {[%clk 0:00:05]}  Kg6 {[%clk 0:00:57]} 0-1


[Site "https://www.chess.com"]

[Event "Titled Tuesday Blitz November 22 Late 2022"]
[White "Al-Tarboush, Ward"]
[Black "Maksimovic, Bojan"]
[WhiteFideId "7601450"]
[BlackFideId "14408120"]
[WhiteElo "2273"]
[BlackElo "2447"]
[Result "0-1"]
[Round "04"]
[TimeControl "180+1"]
[Date "2022.11.23"]
[WhiteClock "0:00:18"]
[BlackClock "0:01:17"]

1. e4 {[%clk 0:02:54]}  c5 {[%clk 0:02:59]} 2. Nf3 {[%clk 0:02:54]}  e6 {[%clk 0:02:59]} 3. d4 {[%clk 0:02:54]}  cxd4 {[%clk 0:02:59]} 4. Nxd4 {[%clk 0:02:55]}  a6 {[%clk 0:03:00]} 5. Bd3 {[%clk 0:02:54]}  Bc5 {[%clk 0:02:59]} 6. Nb3 {[%clk 0:02:55]}  Ba7 {[%clk 0:02:59]} 7. Qe2 {[%clk 0:02:48]}  Nc6 {[%clk 0:02:59]} 8. Nc3 {[%clk 0:02:45]}  Nge7 {[%clk 0:02:52]} 9. Be3 {[%clk 0:02:45]}  Bb8 {[%clk 0:02:52]} 10. f4 {[%clk 0:02:43]}  O-O {[%clk 0:02:50]} 11. h4 {[%clk 0:02:38]}  f5 {[%clk 0:02:49]} 12. e5 {[%clk 0:02:30]}  d6 {[%clk 0:02:41]} 13. exd6 {[%clk 0:02:16]}  Bxd6 {[%clk 0:02:41]} 14. O-O-O {[%clk 0:02:17]}  Qc7 {[%clk 0:02:40]} 15. Rdf1 {[%clk 0:02:10]}  e5 {[%clk 0:02:31]} 16. g4 {[%clk 0:02:03]}  exf4 {[%clk 0:02:23]} 17. Bc5 {[%clk 0:01:37]}  fxg4 {[%clk 0:02:14]} 18. Bxd6 {[%clk 0:01:34]}  Qxd6 {[%clk 0:02:13]} 19. Ne4 {[%clk 0:01:34]}  Qe5 {[%clk 0:02:08]} 20. Qd2 {[%clk 0:01:28]}  f3 {[%clk 0:01:53]} 21. Ng5 {[%clk 0:01:23]}  Bf5 {[%clk 0:01:41]} 22. Bc4+ {[%clk 0:01:22]}  Kh8 {[%clk 0:01:41]} 23. Nf7+ {[%clk 0:01:15]}  Rxf7 {[%clk 0:01:42]} 24. Bxf7 {[%clk 0:01:16]}  Rd8 {[%clk 0:01:42]} 25. Qf2 {[%clk 0:00:49]}  Qf4+ {[%clk 0:01:42]} 26. Kb1 {[%clk 0:00:49]}  Be4 {[%clk 0:01:40]} 27. Qe1 {[%clk 0:00:25]}  g3 {[%clk 0:01:33]} 28. Nc5 {[%clk 0:00:24]}  g2 {[%clk 0:01:24]} 29. Qxe4 {[%clk 0:00:20]}  gxf1=Q+ {[%clk 0:01:25]} 30. Rxf1 {[%clk 0:00:20]}  Qxf7 {[%clk 0:01:25]} 31. Ne6 {[%clk 0:00:19]}  Rd6 {[%clk 0:01:18]} 32. Ng5 {[%clk 0:00:18]}  Qf5 {[%clk 0:01:19]} 33. Rxf3 {[%clk 0:00:18]}  Rd1# {[%clk 0:01:17]} 0-1


[Site "https://www.chess.com"]

[Event "Titled Tuesday Blitz November 22 Late 2022"]
[White "Antonova, Nadezhda"]
[Black "Toncheva, Nadya"]
[WhiteFideId "14700182"]
[BlackFideId "2924056"]
[WhiteElo "1813"]
[BlackElo "2101"]
[Result "0-1"]
[Round "04"]
[TimeControl "180+1"]
[Date "2022.11.23"]
[WhiteClock "0:00:04"]
[BlackClock "0:00:54"]

1. Nf3 {[%clk 0:02:59]}  c5 {[%clk 0:03:00]} 2. b3 {[%clk 0:02:58]}  d6 {[%clk 0:02:59]} 3. Bb2 {[%clk 0:02:58]}  e5 {[%clk 0:02:59]} 4. g3 {[%clk 0:02:58]}  g6 {[%clk 0:02:59]} 5. Bg2 {[%clk 0:02:58]}  Bg7 {[%clk 0:02:59]} 6. e4 {[%clk 0:02:55]}  Ne7 {[%clk 0:02:59]} 7. O-O {[%clk 0:02:54]}  O-O {[%clk 0:02:58]} 8. d3 {[%clk 0:02:52]}  Nbc6 {[%clk 0:02:58]} 9. Nbd2 {[%clk 0:02:52]}  h6 {[%clk 0:02:58]} 10. Nc4 {[%clk 0:02:34]}  Be6 {[%clk 0:02:58]} 11. a4 {[%clk 0:02:11]}  Kh7 {[%clk 0:02:56]} 12. Nh4 {[%clk 0:01:51]}  g5 {[%clk 0:01:59]} 13. Nf3 {[%clk 0:01:40]}  f5 {[%clk 0:01:54]} 14. exf5 {[%clk 0:01:37]}  Nxf5 {[%clk 0:01:53]} 15. Rb1 {[%clk 0:01:19]}  Qd7 {[%clk 0:01:40]} 16. Re1 {[%clk 0:01:06]}  Ncd4 {[%clk 0:01:31]} 17. Bxd4 {[%clk 0:00:52]}  Nxd4 {[%clk 0:01:29]} 18. Nxd4 {[%clk 0:00:44]}  cxd4 {[%clk 0:01:30]} 19. Qd2 {[%clk 0:00:30]}  Rf7 {[%clk 0:01:25]} 20. Re2 {[%clk 0:00:09]}  Bg4 {[%clk 0:01:24]} 21. Be4+ {[%clk 0:00:09]}  Kh8 {[%clk 0:01:21]} 22. f3 {[%clk 0:00:06]}  Bxf3 {[%clk 0:01:17]} 23. Bxf3 {[%clk 0:00:06]}  Rxf3 {[%clk 0:01:18]} 24. Rf1 {[%clk 0:00:07]}  Rxf1+ {[%clk 0:01:17]} 25. Kxf1 {[%clk 0:00:07]}  d5 {[%clk 0:01:01]} 26. Nxe5 {[%clk 0:00:04]}  Qf5+ {[%clk 0:00:54]} 0-1


[Site "https://www.chess.com"]

[Event "Titled Tuesday Blitz November 22 Late 2022"]
[White "Baltaci, Ismail Tarik"]
[Black "D`Arruda, Ricardo D."]
[WhiteFideId "6365213"]
[BlackFideId "100692"]
[WhiteElo "2328"]
[BlackElo "2522"]
[Result "0-1"]
[Round "04"]
[TimeControl "180+1"]
[Date "2022.11.23"]
[WhiteClock "0:00:05"]
[BlackClock "0:00:19"]

1. e4 {[%clk 0:03:00]}  c5 {[%clk 0:02:57]} 2. Nf3 {[%clk 0:03:00]}  Nc6 {[%clk 0:02:55]} 3. Bb5 {[%clk 0:03:00]}  g6 {[%clk 0:02:52]} 4. Bxc6 {[%clk 0:03:00]}  dxc6 {[%clk 0:02:53]} 5. d3 {[%clk 0:03:00]}  c4 {[%clk 0:02:53]} 6. dxc4 {[%clk 0:02:59]}  Qxd1+ {[%clk 0:02:54]} 7. Kxd1 {[%clk 0:03:00]}  Nf6 {[%clk 0:02:45]} 8. Nbd2 {[%clk 0:02:57]}  Bg7 {[%clk 0:02:32]} 9. Ke2 {[%clk 0:02:55]}  O-O {[%clk 0:02:29]} 10. Re1 {[%clk 0:02:52]}  Nh5 {[%clk 0:02:15]} 11. Rb1 {[%clk 0:01:42]}  f5 {[%clk 0:02:03]} 12. e5 {[%clk 0:01:39]}  f4 {[%clk 0:02:01]} 13. h3 {[%clk 0:01:34]}  Bf5 {[%clk 0:01:59]} 14. Nd4 {[%clk 0:01:30]}  Bxe5 {[%clk 0:01:59]} 15. Nxf5 {[%clk 0:01:28]}  Rxf5 {[%clk 0:02:00]} 16. Nf3 {[%clk 0:01:28]}  Bf6 {[%clk 0:01:57]} 17. Bd2 {[%clk 0:01:28]}  e5 {[%clk 0:01:44]} 18. Kd3 {[%clk 0:01:26]}  Re8 {[%clk 0:01:39]} 19. Bc3 {[%clk 0:01:21]}  Bg7 {[%clk 0:01:37]} 20. Nd2 {[%clk 0:01:19]}  f3 {[%clk 0:01:35]} 21. g3 {[%clk 0:01:15]}  Rf7 {[%clk 0:01:29]} 22. c5 {[%clk 0:01:03]}  Rd8+ {[%clk 0:01:22]} 23. Kc4 {[%clk 0:01:03]}  Nf6 {[%clk 0:01:05]} 24. Ne4 {[%clk 0:01:00]}  Nd5 {[%clk 0:01:01]} 25. Rbd1 {[%clk 0:00:57]}  h6 {[%clk 0:00:57]} 26. Nd6 {[%clk 0:00:50]}  b5+ {[%clk 0:00:53]} 27. Kb3 {[%clk 0:00:47]}  Re7 {[%clk 0:00:51]} 28. Ba5 {[%clk 0:00:40]}  Rf8 {[%clk 0:00:51]} 29. c4 {[%clk 0:00:28]}  bxc4+ {[%clk 0:00:49]} 30. Kxc4 {[%clk 0:00:29]}  e4 {[%clk 0:00:38]} 31. Rxe4 {[%clk 0:00:25]}  Rxe4+ {[%clk 0:00:38]} 32. Nxe4 {[%clk 0:00:26]}  Bxb2 {[%clk 0:00:37]} 33. Rb1 {[%clk 0:00:26]}  Be5 {[%clk 0:00:36]} 34. Rb7 {[%clk 0:00:25]}  Nf6 {[%clk 0:00:31]} 35. Nxf6+ {[%clk 0:00:23]}  Rxf6 {[%clk 0:00:31]} 36. Bd2 {[%clk 0:00:23]}  Bxg3 {[%clk 0:00:30]} 37. Be3 {[%clk 0:00:17]}  Bf4 {[%clk 0:00:30]} 38. Kd3 {[%clk 0:00:15]}  Bxe3 {[%clk 0:00:28]} 39. Kxe3 {[%clk 0:00:16]}  Rf5 {[%clk 0:00:28]} 40. Rxa7 {[%clk 0:00:16]}  Rxc5 {[%clk 0:00:28]} 41. Kxf3 {[%clk 0:00:17]}  Rc3+ {[%clk 0:00:27]} 42. Kg4 {[%clk 0:00:18]}  c5 {[%clk 0:00:27]} 43. h4 {[%clk 0:00:17]}  Rc4+ {[%clk 0:00:26]} 44. f4 {[%clk 0:00:17]}  Rd4 {[%clk 0:00:24]} 45. a4 {[%clk 0:00:17]}  c4 {[%clk 0:00:23]} 46. Rc7 {[%clk 0:00:17]}  c3 {[%clk 0:00:23]} 47. a5 {[%clk 0:00:17]}  Ra4 {[%clk 0:00:23]} 48. Rxc3 {[%clk 0:00:17]}  Rxa5 {[%clk 0:00:23]} 49. Rc7 {[%clk 0:00:17]}  Rb5 {[%clk 0:00:22]} 50. Rd7 {[%clk 0:00:16]}  h5+ {[%clk 0:00:22]} 51. Kf3 {[%clk 0:00:16]}  Rb3+ {[%clk 0:00:23]} 52. Ke4 {[%clk 0:00:16]}  Rh3 {[%clk 0:00:23]} 53. Ke5 {[%clk 0:00:14]}  Rxh4 {[%clk 0:00:23]} 54. Kf6 {[%clk 0:00:12]}  Rg4 {[%clk 0:00:23]} 55. Rg7+ {[%clk 0:00:09]}  Kf8 {[%clk 0:00:21]} 56. Rh7 {[%clk 0:00:06]}  Kg8 {[%clk 0:00:19]} 57. Rg7+ {[%clk 0:00:06]}  Kh8 {[%clk 0:00:19]} 58. Rd7 {[%clk 0:00:05]}  h4 {[%clk 0:00:19]} 0-1


[Site "https://www.chess.com"]

[Event "Titled Tuesday Blitz November 22 Late 2022"]
[White "Banzea, Alexandru-Bogdan"]
[Black "Drygalov, Sergey"]
[WhiteFideId "1232622"]
[BlackFideId "24171743"]
[WhiteElo "2294"]
[BlackElo "2528"]
[Result "1-0"]
[Round "04"]
[TimeControl "180+1"]
[Date "2022.11.22"]
[WhiteClock "0:00:51"]
[BlackClock "0:00:12"]

1. d4 {[%clk 0:03:00]}  Nf6 {[%clk 0:03:00]} 2. Bf4 {[%clk 0:02:59]}  d5 {[%clk 0:02:58]} 3. Nf3 {[%clk 0:02:59]}  c5 {[%clk 0:02:58]} 4. e3 {[%clk 0:03:00]}  Nc6 {[%clk 0:02:59]} 5. Nbd2 {[%clk 0:03:00]}  Qb6 {[%clk 0:02:58]} 6. dxc5 {[%clk 0:03:01]}  Qxb2 {[%clk 0:02:59]} 7. Rb1 {[%clk 0:03:02]}  Qc3 {[%clk 0:02:59]} 8. Bb5 {[%clk 0:03:02]}  g6 {[%clk 0:02:59]} 9. e4 {[%clk 0:03:02]}  Bg7 {[%clk 0:02:43]} 10. Be5 {[%clk 0:02:57]}  Qxc5 {[%clk 0:02:27]} 11. Bd4 {[%clk 0:02:48]}  Qd6 {[%clk 0:02:22]} 12. e5 {[%clk 0:02:47]}  Qe6 {[%clk 0:02:22]} 13. Ng5 {[%clk 0:02:47]}  Qf5 {[%clk 0:01:43]} 14. exf6 {[%clk 0:02:38]}  Bxf6 {[%clk 0:01:44]} 15. Bxf6 {[%clk 0:02:30]}  Qxf6 {[%clk 0:01:44]} 16. Ngf3 {[%clk 0:02:31]}  O-O {[%clk 0:01:44]} 17. O-O {[%clk 0:02:31]}  e5 {[%clk 0:01:45]} 18. c4 {[%clk 0:02:27]}  e4 {[%clk 0:01:40]} 19. cxd5 {[%clk 0:02:27]}  exf3 {[%clk 0:01:40]} 20. dxc6 {[%clk 0:02:25]}  fxg2 {[%clk 0:01:40]} 21. Re1 {[%clk 0:02:23]}  bxc6 {[%clk 0:01:31]} 22. Ne4 {[%clk 0:02:21]}  Qg7 {[%clk 0:00:29]} 23. Bxc6 {[%clk 0:02:20]}  Be6 {[%clk 0:00:29]} 24. Bxa8 {[%clk 0:02:20]}  Rxa8 {[%clk 0:00:30]} 25. Qd6 {[%clk 0:02:15]}  Qf8 {[%clk 0:00:30]} 26. Nf6+ {[%clk 0:02:09]}  Kg7 {[%clk 0:00:30]} 27. Qe5 {[%clk 0:02:09]}  Qd8 {[%clk 0:00:24]} 28. Nh5+ {[%clk 0:01:57]}  Kh6 {[%clk 0:00:23]} 29. Qg7+ {[%clk 0:01:29]}  Kxh5 {[%clk 0:00:22]} 30. Rb5+ {[%clk 0:01:26]}  Bf5 {[%clk 0:00:20]} 31. Qxh7+ {[%clk 0:01:20]}  Kg5 {[%clk 0:00:21]} 32. h4+ {[%clk 0:00:58]}  Kf6 {[%clk 0:00:20]} 33. Rxf5+ {[%clk 0:00:56]}  Kxf5 {[%clk 0:00:18]} 34. Qxf7+ {[%clk 0:00:55]}  Qf6 {[%clk 0:00:14]} 35. Qd5+ {[%clk 0:00:55]}  Kg4 {[%clk 0:00:14]} 36. Qxa8 {[%clk 0:00:53]}  Qxh4 {[%clk 0:00:11]} 37. Re4+ {[%clk 0:00:51]}  Kf5 {[%clk 0:00:12]} 38. Rxh4 {[%clk 0:00:51]} 1-0


[Site "https://www.chess.com"]

[Event "Titled Tuesday Blitz November 22 Late 2022"]
[White "Bayo Milagro, Alvaro"]
[Black "Fernandez Siles, Luis"]
[WhiteFideId "22275240"]
[BlackFideId "2209420"]
[WhiteElo "2270"]
[BlackElo "2186"]
[Result "0-1"]
[Round "04"]
[TimeControl "180+1"]
[Date "2022.11.23"]
[WhiteClock "0:01:26"]
[BlackClock "0:01:57"]

1. e4 {[%clk 0:02:48]}  c5 {[%clk 0:02:59]} 2. Nf3 {[%clk 0:02:48]}  Nc6 {[%clk 0:02:59]} 3. d4 {[%clk 0:02:48]}  cxd4 {[%clk 0:03:00]} 4. Nxd4 {[%clk 0:02:46]}  Nf6 {[%clk 0:03:00]} 5. Nc3 {[%clk 0:02:47]}  e5 {[%clk 0:03:01]} 6. Ndb5 {[%clk 0:02:45]}  d6 {[%clk 0:03:01]} 7. Nd5 {[%clk 0:02:38]}  Nxd5 {[%clk 0:03:00]} 8. exd5 {[%clk 0:02:38]}  Nb8 {[%clk 0:03:01]} 9. a4 {[%clk 0:02:38]}  Be7 {[%clk 0:03:00]} 10. Be2 {[%clk 0:02:36]}  O-O {[%clk 0:03:00]} 11. O-O {[%clk 0:02:36]}  f5 {[%clk 0:02:55]} 12. f4 {[%clk 0:02:36]}  Bf6 {[%clk 0:02:52]} 13. c3 {[%clk 0:02:36]}  a6 {[%clk 0:02:43]} 14. Na3 {[%clk 0:02:35]}  b6 {[%clk 0:02:43]} 15. Be3 {[%clk 0:02:35]}  Nd7 {[%clk 0:02:41]} 16. Nc4 {[%clk 0:02:33]}  Qc7 {[%clk 0:02:29]} 17. Qb3 {[%clk 0:02:28]}  Rb8 {[%clk 0:02:24]} 18. fxe5 {[%clk 0:02:24]}  Nxe5 {[%clk 0:02:21]} 19. Nxb6 {[%clk 0:02:16]}  a5 {[%clk 0:02:10]} 20. c4 {[%clk 0:01:35]}  Nd7 {[%clk 0:02:02]} 21. c5 {[%clk 0:01:26]}  Nxc5 {[%clk 0:01:57]} 0-1


[Site "https://www.chess.com"]